{"text_format":"3","workbook":"xlsx","n_sheets":1,"sheets":["Orçamento pessoal mensal"],"read":"whole","date_system":"1900"}

{"sheet":"Orçamento pessoal mensal","index":0,"n_rows":62,"n_cols":10,"rows_kept":62,"merged":[[0,1,0,9],[2,1,4,1],[2,2,2,3],[2,7,2,8],[3,2,3,3],[3,7,3,8],[4,2,4,3],[4,6,4,8],[5,1,7,1],[5,2,5,3],[5,7,5,8],[6,2,6,3],[6,7,6,8],[7,2,7,3],[7,6,7,8],[20,6,20,9],[21,1,21,4],[29,6,29,9],[31,1,31,4],[36,6,36,9],[38,1,38,4],[42,6,42,9],[44,1,44,4],[48,6,48,9],[52,1,52,4],[55,6,55,9]]}
[null,"Orçamento pessoal mensal"]
[]
[null,"RENDA MENSAL PREVISTA","Renda 1",null,{"v":2500,"d":"R$ 2,500"},null,"PREVISÃO DE DESPESA TOTAL ","(renda menos custo previsto)",null,{"$f":"SUM(C21,C31,C38,C44,C52,C62,H20,H29,H36,H42,H48,H55)","v":{"v":2060,"d":"R$ 2,060"}}]
[null,null,"Renda extra",null,{"v":500,"d":"R$ 500"},null,"DESPESA TOTAL REAL ","(renda menos custo real)",null,{"$f":"SUM(D21,D31,D38,D44,D52,D62,I20,I29,I36,I42,I48,I55)","v":{"v":2040,"d":"R$ 2,040"}}]
[null,null,"Renda mensal total",null,{"$f":"SUM(E3:E4)","v":{"v":3000,"d":"R$ 3,000"}},null,"Diferença de despesas total",null,null,{"$f":"SUM(E21,E31,E38,E44,E52,E62,J20,J29,J36,J42,J48,J55)","v":{"v":20,"d":"R$ 20"}}]
[null,"RENDA MENSAL REAL","Renda 1",null,{"v":2500,"d":"R$ 2,500"},null,"SALDO PREVISTO","(renda menos custo previsto)",null,{"$f":"E5-J3","v":{"v":940,"d":"R$ 940"}}]
[null,null,"Renda extra",null,{"v":500,"d":"R$ 500"},null,"SALDO REAL","(renda menos custo real)",null,{"$f":"E8-J4","v":{"v":960,"d":"R$ 960"}}]
[null,null,"Renda mensal total",null,{"$f":"SUM(E6:E7)","v":{"v":3000,"d":"R$ 3,000"}},null,"DIFERENÇA DE SALDO (real menos previsto)",null,null,{"$f":"J7-J6","v":{"v":20,"d":"R$ 20"}}]
[]
[null,"MORADIA","Custo previsto","Custo Real","Diferença",null,"ENTRETENIMENTO","Custo previsto","Custo Real","Diferença"]
[null,"Hipoteca ou aluguel",{"v":1500,"d":"R$ 1,500"},{"v":1400,"d":"R$ 1,400"},{"$f":"Moradia[[#This Row],[Custo previsto]]-Moradia[[#This Row],[Custo Real]]","v":{"v":100,"d":"R$ 100"}},null,"Vídeo/DVD",{"v":0,"d":"R$ 0"},{"v":50,"d":"R$ 50"},{"$f":"Entretenimento[[#This Row],[Custo previsto]]-Entretenimento[[#This Row],[Custo Real]]","v":{"v":-50,"d":"-R$ 50"}}]
[null,"Telefone",{"v":60,"d":"R$ 60"},{"v":100,"d":"R$ 100"},{"$f":"Moradia[[#This Row],[Custo previsto]]-Moradia[[#This Row],[Custo Real]]","v":{"v":-40,"d":"-R$ 40"}},null,"CDs",null,null,{"$f":"Entretenimento[[#This Row],[Custo previsto]]-Entretenimento[[#This Row],[Custo Real]]","v":{"v":0,"d":"R$ 0"}}]
[null,"Conta de luz",{"v":50,"d":"R$ 50"},{"v":60,"d":"R$ 60"},{"$f":"Moradia[[#This Row],[Custo previsto]]-Moradia[[#This Row],[Custo Real]]","v":{"v":-10,"d":"-R$ 10"}},null,"Filmes",null,null,{"$f":"Entretenimento[[#This Row],[Custo previsto]]-Entretenimento[[#This Row],[Custo Real]]","v":{"v":0,"d":"R$ 0"}}]
[null,"Gás",{"v":200,"d":"R$ 200"},{"v":180,"d":"R$ 180"},{"$f":"Moradia[[#This Row],[Custo previsto]]-Moradia[[#This Row],[Custo Real]]","v":{"v":20,"d":"R$ 20"}},null,"Shows",null,null,{"$f":"Entretenimento[[#This Row],[Custo previsto]]-Entretenimento[[#This Row],[Custo Real]]","v":{"v":0,"d":"R$ 0"}}]
[null,"Água e esgoto",null,null,{"$f":"Moradia[[#This Row],[Custo previsto]]-Moradia[[#This Row],[Custo Real]]","v":{"v":0,"d":"R$ 0"}},null,"Eventos esportivos",null,null,{"$f":"Entretenimento[[#This Row],[Custo previsto]]-Entretenimento[[#This Row],[Custo Real]]","v":{"v":0,"d":"R$ 0"}}]
[null,"TV a cabo",null,null,{"$f":"Moradia[[#This Row],[Custo previsto]]-Moradia[[#This Row],[Custo Real]]","v":{"v":0,"d":"R$ 0"}},null,"Teatro ao vivo",null,null,{"$f":"Entretenimento[[#This Row],[Custo previsto]]-Entretenimento[[#This Row],[Custo Real]]","v":{"v":0,"d":"R$ 0"}}]
[null,"Coleta de lixo",null,null,{"$f":"Moradia[[#This Row],[Custo previsto]]-Moradia[[#This Row],[Custo Real]]","v":{"v":0,"d":"R$ 0"}},null,"Outros",null,null,{"$f":"Entretenimento[[#This Row],[Custo previsto]]-Entretenimento[[#This Row],[Custo Real]]","v":{"v":0,"d":"R$ 0"}}]
[null,"Manutenção ou reparos",null,null,{"$f":"Moradia[[#This Row],[Custo previsto]]-Moradia[[#This Row],[Custo Real]]","v":{"v":0,"d":"R$ 0"}},null,"Outros",null,null,{"$f":"Entretenimento[[#This Row],[Custo previsto]]-Entretenimento[[#This Row],[Custo Real]]","v":{"v":0,"d":"R$ 0"}}]
[null,"Suprimentos",null,null,{"$f":"Moradia[[#This Row],[Custo previsto]]-Moradia[[#This Row],[Custo Real]]","v":{"v":0,"d":"R$ 0"}},null,"Outros",null,null,{"$f":"Entretenimento[[#This Row],[Custo previsto]]-Entretenimento[[#This Row],[Custo Real]]","v":{"v":0,"d":"R$ 0"}}]
[null,"Outros",null,null,{"$f":"Moradia[[#This Row],[Custo previsto]]-Moradia[[#This Row],[Custo Real]]","v":{"v":0,"d":"R$ 0"}},null,"Total",{"$f":"SUBTOTAL(109,Entretenimento[Custo previsto])","v":{"v":0,"d":"R$ 0"}},{"$f":"SUBTOTAL(109,Entretenimento[Custo Real])","v":{"v":50,"d":"R$ 50"}},{"$f":"SUBTOTAL(109,Entretenimento[Diferença])","v":{"v":-50,"d":"-R$ 50"}}]
[null,"Total",{"$f":"SUBTOTAL(109,Moradia[Custo previsto])","v":{"v":1810,"d":"R$ 1,810"}},{"$f":"SUBTOTAL(109,Moradia[Custo Real])","v":{"v":1740,"d":"R$ 1,740"}},{"$f":"SUBTOTAL(109,Moradia[Diferença])","v":{"v":70,"d":"R$ 70"}}]
[{"$nulls":6},"EMPRÉSTIMOS","Custo previsto","Custo Real","Diferença"]
[null,"TRANSPORTE","Custo previsto","Custo Real","Diferença",null,"Pessoal",null,null,{"$f":"Empréstimos[[#This Row],[Custo previsto]]-Empréstimos[[#This Row],[Custo Real]]","v":{"v":0,"d":"R$ 0"}}]
[null,"Pagamento do veículo",{"v":250,"d":"R$ 250"},{"v":250,"d":"R$ 250"},{"$f":"Transporte[[#This Row],[Custo previsto]]-Transporte[[#This Row],[Custo Real]]","v":{"v":0,"d":"R$ 0"}},null,"Estudante",null,null,{"$f":"Empréstimos[[#This Row],[Custo previsto]]-Empréstimos[[#This Row],[Custo Real]]","v":{"v":0,"d":"R$ 0"}}]
[null,"Transporte público/táxi",null,null,{"$f":"Transporte[[#This Row],[Custo previsto]]-Transporte[[#This Row],[Custo Real]]","v":{"v":0,"d":"R$ 0"}},null,"Cartão de crédito",null,null,{"$f":"Empréstimos[[#This Row],[Custo previsto]]-Empréstimos[[#This Row],[Custo Real]]","v":{"v":0,"d":"R$ 0"}}]
[null,"Seguro",null,null,{"$f":"Transporte[[#This Row],[Custo previsto]]-Transporte[[#This Row],[Custo Real]]","v":{"v":0,"d":"R$ 0"}},null,"Cartão de crédito",null,null,{"$f":"Empréstimos[[#This Row],[Custo previsto]]-Empréstimos[[#This Row],[Custo Real]]","v":{"v":0,"d":"R$ 0"}}]
[null,"Licenciamento",null,null,{"$f":"Transporte[[#This Row],[Custo previsto]]-Transporte[[#This Row],[Custo Real]]","v":{"v":0,"d":"R$ 0"}},null,"Cartão de crédito",null,null,{"$f":"Empréstimos[[#This Row],[Custo previsto]]-Empréstimos[[#This Row],[Custo Real]]","v":{"v":0,"d":"R$ 0"}}]
[null,"Combustível",null,null,{"$f":"Transporte[[#This Row],[Custo previsto]]-Transporte[[#This Row],[Custo Real]]","v":{"v":0,"d":"R$ 0"}},null,"Outros",null,null,{"$f":"Empréstimos[[#This Row],[Custo previsto]]-Empréstimos[[#This Row],[Custo Real]]","v":{"v":0,"d":"R$ 0"}}]
[null,"Manutenção",null,null,{"$f":"Transporte[[#This Row],[Custo previsto]]-Transporte[[#This Row],[Custo Real]]","v":{"v":0,"d":"R$ 0"}},null,"Total",{"$f":"SUBTOTAL(109,Empréstimos[Custo previsto])","v":{"v":0,"d":"R$ 0"}},{"$f":"SUBTOTAL(109,Empréstimos[Custo Real])","v":{"v":0,"d":"R$ 0"}},{"$f":"SUBTOTAL(109,Empréstimos[Diferença])","v":{"v":0,"d":"R$ 0"}}]
[null,"Outros",null,null,{"$f":"Transporte[[#This Row],[Custo previsto]]-Transporte[[#This Row],[Custo Real]]","v":{"v":0,"d":"R$ 0"}}]
[null,"Total",{"$f":"SUBTOTAL(109,Transporte[Custo previsto])","v":{"v":250,"d":"R$ 250"}},{"$f":"SUBTOTAL(109,Transporte[Custo Real])","v":{"v":250,"d":"R$ 250"}},{"$f":"SUBTOTAL(109,Transporte[Diferença])","v":{"v":0,"d":"R$ 0"}},null,"IMPOSTOS","Custo previsto","Custo Real","Diferença"]
[{"$nulls":6},"Federal",null,null,{"$f":"Impostos[[#This Row],[Custo previsto]]-Impostos[[#This Row],[Custo Real]]","v":{"v":0,"d":"R$ 0"}}]
[null,"SEGURO","Custo previsto","Custo Real","Diferença",null,"Estadual",null,null,{"$f":"Impostos[[#This Row],[Custo previsto]]-Impostos[[#This Row],[Custo Real]]","v":{"v":0,"d":"R$ 0"}}]
[null,"Residencial",null,null,{"$f":"Seguro[[#This Row],[Custo previsto]]-Seguro[[#This Row],[Custo Real]]","v":{"v":0,"d":"R$ 0"}},null,"Local",null,null,{"$f":"Impostos[[#This Row],[Custo previsto]]-Impostos[[#This Row],[Custo Real]]","v":{"v":0,"d":"R$ 0"}}]
[null,"Saúde",null,null,{"$f":"Seguro[[#This Row],[Custo previsto]]-Seguro[[#This Row],[Custo Real]]","v":{"v":0,"d":"R$ 0"}},null,"Outros",null,null,{"$f":"Impostos[[#This Row],[Custo previsto]]-Impostos[[#This Row],[Custo Real]]","v":{"v":0,"d":"R$ 0"}}]
[null,"Vida",null,null,{"$f":"Seguro[[#This Row],[Custo previsto]]-Seguro[[#This Row],[Custo Real]]","v":{"v":0,"d":"R$ 0"}},null,"Total",{"$f":"SUBTOTAL(109,Impostos[Custo previsto])","v":{"v":0,"d":"R$ 0"}},{"$f":"SUBTOTAL(109,Impostos[Custo Real])","v":{"v":0,"d":"R$ 0"}},{"$f":"SUBTOTAL(109,Impostos[Diferença])","v":{"v":0,"d":"R$ 0"}}]
[null,"Outros",null,null,{"$f":"Seguro[[#This Row],[Custo previsto]]-Seguro[[#This Row],[Custo Real]]","v":{"v":0,"d":"R$ 0"}}]
[null,"Total",{"$f":"SUBTOTAL(109,Seguro[Custo previsto])","v":{"v":0,"d":"R$ 0"}},{"$f":"SUBTOTAL(109,Seguro[Custo Real])","v":{"v":0,"d":"R$ 0"}},{"$f":"SUBTOTAL(109,Seguro[Diferença])","v":{"v":0,"d":"R$ 0"}},null,"POUPANÇAS OU INVESTIMENTOS","Custo previsto","Custo Real","Diferença"]
[{"$nulls":6},"Aposentadoria",null,null,{"$f":"PoupançasOuInvestimentos[[#This Row],[Custo previsto]]-PoupançasOuInvestimentos[[#This Row],[Custo Real]]","v":{"v":0,"d":"R$ 0"}}]
[null,"ALIMENTAÇÃO","Custo previsto","Custo Real","Diferença",null,"Investimentos",null,null,{"$f":"PoupançasOuInvestimentos[[#This Row],[Custo previsto]]-PoupançasOuInvestimentos[[#This Row],[Custo Real]]","v":{"v":0,"d":"R$ 0"}}]
[null,"Supermercado",null,null,{"$f":"Alimentação[[#This Row],[Custo previsto]]-Alimentação[[#This Row],[Custo Real]]","v":{"v":0,"d":"R$ 0"}},null,"Outros",null,null,{"$f":"PoupançasOuInvestimentos[[#This Row],[Custo previsto]]-PoupançasOuInvestimentos[[#This Row],[Custo Real]]","v":{"v":0,"d":"R$ 0"}}]
[null,"Jantar fora",null,null,{"$f":"Alimentação[[#This Row],[Custo previsto]]-Alimentação[[#This Row],[Custo Real]]","v":{"v":0,"d":"R$ 0"}},null,"Total",{"$f":"SUBTOTAL(109,PoupançasOuInvestimentos[Custo previsto])","v":{"v":0,"d":"R$ 0"}},{"$f":"SUBTOTAL(109,PoupançasOuInvestimentos[Custo Real])","v":{"v":0,"d":"R$ 0"}},{"$f":"SUBTOTAL(109,PoupançasOuInvestimentos[Diferença])","v":{"v":0,"d":"R$ 0"}}]
[null,"Outros",null,null,{"$f":"Alimentação[[#This Row],[Custo previsto]]-Alimentação[[#This Row],[Custo Real]]","v":{"v":0,"d":"R$ 0"}}]
[null,"Total",{"$f":"SUBTOTAL(109,Alimentação[Custo previsto])","v":{"v":0,"d":"R$ 0"}},{"$f":"SUBTOTAL(109,Alimentação[Custo Real])","v":{"v":0,"d":"R$ 0"}},{"$f":"SUBTOTAL(109,Alimentação[Diferença])","v":{"v":0,"d":"R$ 0"}},null,"PRESENTES E DOAÇÕES","Custo previsto","Custo Real","Diferença"]
[{"$nulls":6},"Instituição beneficente 1",null,null,{"$f":"PresentesEDoações[[#This Row],[Custo previsto]]-PresentesEDoações[[#This Row],[Custo Real]]","v":{"v":0,"d":"R$ 0"}}]
[null,"ANIMAIS DE ESTIMAÇÃO","Custo previsto","Custo Real","Diferença",null,"Instituição beneficente 2",null,null,{"$f":"PresentesEDoações[[#This Row],[Custo previsto]]-PresentesEDoações[[#This Row],[Custo Real]]","v":{"v":0,"d":"R$ 0"}}]
[null,"Alimentação",null,null,{"$f":"Animais_de_estimação[[#This Row],[Custo previsto]]-Animais_de_estimação[[#This Row],[Custo Real]]","v":{"v":0,"d":"R$ 0"}},null,"Instituição beneficente 3",null,null,{"$f":"PresentesEDoações[[#This Row],[Custo previsto]]-PresentesEDoações[[#This Row],[Custo Real]]","v":{"v":0,"d":"R$ 0"}}]
[null,"Médico",null,null,{"$f":"Animais_de_estimação[[#This Row],[Custo previsto]]-Animais_de_estimação[[#This Row],[Custo Real]]","v":{"v":0,"d":"R$ 0"}},null,"Total",{"$f":"SUBTOTAL(109,PresentesEDoações[Custo previsto])","v":{"v":0,"d":"R$ 0"}},{"$f":"SUBTOTAL(109,PresentesEDoações[Custo Real])","v":{"v":0,"d":"R$ 0"}},{"$f":"SUBTOTAL(109,PresentesEDoações[Diferença])","v":{"v":0,"d":"R$ 0"}}]
[null,"Banho e tosa",null,null,{"$f":"Animais_de_estimação[[#This Row],[Custo previsto]]-Animais_de_estimação[[#This Row],[Custo Real]]","v":{"v":0,"d":"R$ 0"}}]
[null,"Brinquedos",null,null,{"$f":"Animais_de_estimação[[#This Row],[Custo previsto]]-Animais_de_estimação[[#This Row],[Custo Real]]","v":{"v":0,"d":"R$ 0"}},null,"ASSESSORIA JURÍDICA","Custo previsto","Custo Real","Diferença"]
[null,"Outros",null,null,{"$f":"Animais_de_estimação[[#This Row],[Custo previsto]]-Animais_de_estimação[[#This Row],[Custo Real]]","v":{"v":0,"d":"R$ 0"}},null,"Advogado",null,null,{"$f":"Assessoria_jurídica[[#This Row],[Custo previsto]]-Assessoria_jurídica[[#This Row],[Custo Real]]","v":{"v":0,"d":"R$ 0"}}]
[null,"Total",{"$f":"SUBTOTAL(109,Animais_de_estimação[Custo previsto])","v":{"v":0,"d":"R$ 0"}},{"$f":"SUBTOTAL(109,Animais_de_estimação[Custo Real])","v":{"v":0,"d":"R$ 0"}},{"$f":"SUBTOTAL(109,Animais_de_estimação[Diferença])","v":{"v":0,"d":"R$ 0"}},null,"Pensão alimentícia",null,null,{"$f":"Assessoria_jurídica[[#This Row],[Custo previsto]]-Assessoria_jurídica[[#This Row],[Custo Real]]","v":{"v":0,"d":"R$ 0"}}]
[{"$nulls":6},"Pagamentos em garantia ou julgamento",null,null,{"$f":"Assessoria_jurídica[[#This Row],[Custo previsto]]-Assessoria_jurídica[[#This Row],[Custo Real]]","v":{"v":0,"d":"R$ 0"}}]
[null,"CUIDADOS PESSOAIS","Custo previsto","Custo Real","Diferença",null,"Outros",null,null,{"$f":"Assessoria_jurídica[[#This Row],[Custo previsto]]-Assessoria_jurídica[[#This Row],[Custo Real]]","v":{"v":0,"d":"R$ 0"}}]
[null,"Médico",null,null,{"$f":"CuidadosPessoais[[#This Row],[Custo previsto]]-CuidadosPessoais[[#This Row],[Custo Real]]","v":{"v":0,"d":"R$ 0"}},null,"Total",{"$f":"SUBTOTAL(109,Assessoria_jurídica[Custo previsto])","v":{"v":0,"d":"R$ 0"}},{"$f":"SUBTOTAL(109,Assessoria_jurídica[Custo Real])","v":{"v":0,"d":"R$ 0"}},{"$f":"SUBTOTAL(109,Assessoria_jurídica[Diferença])","v":{"v":0,"d":"R$ 0"}}]
[null,"Cabelo/unhas",null,null,{"$f":"CuidadosPessoais[[#This Row],[Custo previsto]]-CuidadosPessoais[[#This Row],[Custo Real]]","v":{"v":0,"d":"R$ 0"}}]
[null,"Vestuário",null,null,{"$f":"CuidadosPessoais[[#This Row],[Custo previsto]]-CuidadosPessoais[[#This Row],[Custo Real]]","v":{"v":0,"d":"R$ 0"}}]
[null,"Lavagem a seco",null,null,{"$f":"CuidadosPessoais[[#This Row],[Custo previsto]]-CuidadosPessoais[[#This Row],[Custo Real]]","v":{"v":0,"d":"R$ 0"}}]
[null,"Academia",null,null,{"$f":"CuidadosPessoais[[#This Row],[Custo previsto]]-CuidadosPessoais[[#This Row],[Custo Real]]","v":{"v":0,"d":"R$ 0"}}]
[null,"Impostos ou taxas de organização",null,null,{"$f":"CuidadosPessoais[[#This Row],[Custo previsto]]-CuidadosPessoais[[#This Row],[Custo Real]]","v":{"v":0,"d":"R$ 0"}}]
[null,"Outros",null,null,{"$f":"CuidadosPessoais[[#This Row],[Custo previsto]]-CuidadosPessoais[[#This Row],[Custo Real]]","v":{"v":0,"d":"R$ 0"}}]
[null,"Total",{"$f":"SUBTOTAL(109,CuidadosPessoais[Custo previsto])","v":{"v":0,"d":"R$ 0"}},{"$f":"SUBTOTAL(109,CuidadosPessoais[Custo Real])","v":{"v":0,"d":"R$ 0"}},{"$f":"SUBTOTAL(109,CuidadosPessoais[Diferença])","v":{"v":0,"d":"R$ 0"}}]